fUSD/lending_fUSD_20241123
["ID","MTS","AMOUNT","RATE_DAILY","PERIOD"]
[343103399,1732353097457,-200.0,0.00074647,120]
[343103400,1732353097685,-1000.0,0.00074688,120]
[343103401,1732353097695,-1000.0,0.00074802,120]
[343103402,1732353097705,-165.46398525,0.00074845,28]
[343103403,1732353097715,-500.0,0.00074871,120]
[343103404,1732353097727,-150.56,0.00074903,120]
[343103405,1732353097743,-1000.0,0.00074922,8]
[343103406,1732353097753,-152.31,0.0007494,120]
[343103407,1732353097763,-71931.14843865,0.00074998,120]
[343103408,1732353097773,-100000.0,0.00075,75]
[343103409,1732353097788,-500.0,0.00075,120]
[343103410,1732353097798,-10000.0,0.00075,120]
[343103411,1732353097809,-10000.0,0.00075,120]
[343103412,1732353097818,-468.18788847,0.00075,30]
[343103413,1732353097829,-30022.5019866,0.00075,30]
[343103414,1732353097839,-1406.21524963,0.00075,2]
[343103415,1732353097848,-11040.3767601,0.00075,120]
[343103416,1732353097857,-1000.0,0.00075,120]
[343103417,1732353097867,-151.0,0.00075,120]
[343103418,1732353097877,-151.0,0.00075,120]
[343103419,1732353097887,-210.100158,0.00075,120]
[343103420,1732353097897,-151.0,0.00075,7]
[343103421,1732353097906,-1996.0,0.00075223,120]
[343103422,1732353097915,-629.0,0.00075223,120]
[343103423,1732353097924,-1928.0,0.00075223,120]
[343103424,1732353097934,-561.0,0.00075223,120]
[343103425,1732353097944,-815.0,0.00075223,2]
[343103426,1732353097953,-3750.0,0.00075223,120]
[343103427,1732353097963,-1261.0,0.00075223,120]
[343103428,1732353097972,-3517.0,0.00075223,120]
[343103429,1732353097984,-918.0,0.00075223,120]
[343103430,1732353097994,-500.0,0.0007526,120]
[343103431,1732353098003,-500.0,0.0007536,120]
[343103432,1732353098013,-500.0,0.00075409,120]
[343103433,1732353098023,-205.08,0.00075459,2]
[343103434,1732353098032,-382.83,0.0007571,120]
[343103435,1732353098042,-4378.60682411,0.00075807,15]
[343103436,1732353098052,-1162.0,0.00075836,120]
[343103437,1732353098062,-5944.0,0.00075836,120]
[343103438,1732353098072,-150.0,0.00075836,2]
[343103439,1732353098082,-13666.0,0.00075836,120]
[343103440,1732353098091,-150.0,0.00075836,120]
[343103441,1732353098101,-513.0,0.00075852,2]
[343103442,1732353098111,-500.0,0.00075867,120]
[343103443,1732353098120,-2504.50697329,0.00075913,15]
[343103444,1732353098130,-1400.0,0.00076,30]
[343103445,1732353098140,-208.65955262,0.00076,120]
[343103446,1732353098150,-6222.80374096,0.00076,2]
[343103447,1732353098160,-315.83787373,0.00076108,2]
[343103448,1732353098170,-639.3,0.00076232,120]
[343103449,1732353098181,-46955.92,0.00076284,90]
[343103450,1732353098191,-158.75,0.00076424,120]
[343103451,1732353098201,-224.07,0.00076424,120]
[343103452,1732353098211,-500.0,0.00076624,120]
[343103453,1732353098225,-365.84272452,0.00076649,120]
[343103454,1732353098238,-162.06196599,0.00076649,120]
[343103455,1732353098249,-990.26,0.00076671,2]
[343103456,1732353098259,-5000.0,0.00076712,70]
[343103457,1732353098270,-1433.0,0.00076778,3]
[343103458,1732353098279,-1082.745,0.00076781,120]
[343103459,1732353098290,-17875.73507086,0.000768,120]
[343103460,1732353098300,-167591.30614877,0.00077,10]
[343103461,1732353098310,-100000.0,0.00077,2]
[343103462,1732353098320,-50000.0,0.00077,30]
[343103463,1732353098329,-3992.89948326,0.00077,14]
[343103464,1732353098339,-5000.0,0.00077,120]
[343103465,1732353098348,-1000.0,0.00077128,120]
[343103466,1732353098357,-1257.0,0.00077327,120]
[343103467,1732353098367,-150.112316,0.00077498,120]
[343103468,1732353098378,-1938.840821,0.0007758,30]
[343103469,1732353098388,-51000.0,0.00077599,120]
[343103470,1732353098398,-40791.88987054,0.000776,120]
[343103471,1732353098408,-151.0,0.000776,120]
[343103472,1732353098417,-184.056181,0.000776,120]
[343103473,1732353098426,-184.056181,0.000776,120]
[343103474,1732353098435,-211.444638,0.000776,120]
[343103475,1732353098444,-211.444638,0.000776,120]
[343103476,1732353098453,-1000.0,0.000776,30]
[343103477,1732353098462,-2002.3832,0.0007761,14]
[343103478,1732353098472,-2000.0,0.0007761,14]
[343103479,1732353098483,-1000.0,0.0007762,30]
[343103480,1732353098493,-1000.0,0.0007764,30]
[343103481,1732353098503,-1000.0,0.0007766,30]
[343103482,1732353098512,-1000.0,0.0007768,30]
[343103483,1732353098522,-500.0,0.00077698,120]
[343103484,1732353098531,-500.0,0.00077698,120]
[343103485,1732353098541,-500.0,0.00077698,120]
[343103486,1732353098551,-500.0,0.00077698,120]
[343103487,1732353098561,-500.0,0.00077698,120]
[343103488,1732353098570,-500.0,0.00077698,120]
[343103489,1732353098580,-500.0,0.00077698,120]
[343103490,1732353098590,-500.0,0.00077698,120]
[343103491,1732353098599,-500.0,0.00077698,120]
[343103492,1732353098609,-500.0,0.00077698,120]
[343103493,1732353098619,-500.0,0.00077698,120]
[343103494,1732353098629,-500.0,0.00077698,120]
[343103495,1732353098640,-500.0,0.00077698,120]
[343103496,1732353098650,-532.73943292,0.00077698,120]
[343103497,1732353098660,-165.46398525,0.000777,28]
[343103498,1732353098670,-1000.0,0.000777,30]
[343103499,1732353098679,-1000.0,0.0007772,30]
[343103500,1732353098690,-1000.0,0.0007774,30]
[343103501,1732353098699,-1356.048773,0.0007774,30]
[343103502,1732353098709,-1000.0,0.0007776,30]
[343103503,1732353098719,-1000.0,0.0007776,30]
[343103504,1732353098730,-1000.0,0.0007778,30]
[343103505,1732353098742,-1000.0,0.0007778,30]
[343103506,1732353098752,-154.06027614,0.00077785,120]
[343103507,1732353098762,-154.06027614,0.00077785,120]
[343103508,1732353098772,-154.06027614,0.00077785,120]
[343103509,1732353098783,-154.06027614,0.00077785,120]
[343103510,1732353098793,-154.06027614,0.00077785,120]
[343103511,1732353098803,-154.06027614,0.00077785,120]
[343103512,1732353098813,-154.06027614,0.00077785,120]
[343103513,1732353098825,-154.06027614,0.00077785,120]
[343103514,1732353098834,-154.06027614,0.00077785,120]
[343103515,1732353098844,-154.06027614,0.00077785,120]
[343103516,1732353098853,-154.06027614,0.00077785,120]
[343103517,1732353098862,-154.06027614,0.00077785,120]
[343103518,1732353098872,-154.06,0.00077785,120]
[343103519,1732353098882,-166.1368494,0.00077785,61]
[343103520,1732353098891,-2504.50697329,0.00077785,15]
[343103521,1732353098901,-4378.60682411,0.00077785,15]
[343103522,1732353098910,-205.08,0.00077797,2]
[343103523,1732353098920,-242136.92109925,0.000778,60]
[343103524,1732353098930,-700.0,0.000778,28]
[343103525,1732353098940,-1000.0,0.000778,30]
[343103526,1732353098949,-1000.0,0.000778,30]
[343103527,1732353098959,-165.73,0.0007781,2]
[343103528,1732353098968,-3195.9567251,0.00077832,8]
[343103529,1732353098980,-3388.41685,0.00077832,8]
[343103530,1732353098990,-851.1542623,0.00077832,8]
[343103531,1732353098999,-400.66854171,0.00077885,30]
[343103532,1732353099009,-2051993.12931908,0.00077885,120]
[343103533,1732353099919,500.0,0.0005,120]
[343103534,1732353099931,-846.47,0.00077885,120]
[343103535,1732353099942,-350.2299999,0.00077885,120]
[343103536,1732353099960,-500.0,0.00068493,120]
[343103537,1732353099970,-1157.76,0.00068493,120]
[343103538,1732353099981,-24324.11670099,0.00077885,120]
[343103539,1732353099994,-9392.69226993,0.00077885,120]
[343103540,1732353104515,-500.0,0.0006227,120]
[343103541,1732353104526,-382.03184316,0.00068493,120]
[343103542,1732353104536,-2271.95815684,0.00077885,120]
[343103543,1732353104548,-1400.2024902,0.00077885,120]
[343103544,1732353104560,-573.88723251,0.00077885,120]
[343103545,1732353104577,-1157.76,0.00068493,120]
[343103546,1732353104587,-7977.25913191,0.00077885,120]
[343103547,1732353104599,-555.13124871,0.00077885,120]
[343103548,1732353104650,-500.0,0.00068493,120]
[343103549,1732353104661,-151.0,0.00068493,120]
[343103550,1732353104670,-1962.10872722,0.00077885,120]
[343103551,1732353104683,-8366.34893294,0.00077885,120]
[343103552,1732353105004,-500.0,0.0006227,120]
[343103553,1732353105018,-500.0,0.0006227,120]
[343103554,1732353105034,-500.0,0.0006227,120]
[343103555,1732353105045,-500.0,0.0006227,120]
[343103556,1732353105055,-500.0,0.0006227,120]
[343103557,1732353105065,-500.0,0.0006227,120]
[343103558,1732353105074,-500.0,0.0006227,120]
[343103559,1732353105083,-500.0,0.0006227,120]
[343103560,1732353105092,-500.0,0.0006227,120]
[343103561,1732353105101,-500.0,0.0006227,120]
[343103562,1732353105111,-500.0,0.0006227,120]
[343103563,1732353105121,-500.0,0.0006227,120]
[343103564,1732353105131,-500.0,0.0006227,120]
[343103565,1732353105141,-500.0,0.0006227,120]
[343103566,1732353105150,-500.0,0.0006227,120]
[343103567,1732353105159,-500.0,0.0006227,120]
[343103568,1732353105169,-500.0,0.00068493,120]
[343103569,1732353105179,-609.66,0.00068493,120]
[343103570,1732353105188,-1157.76,0.00068493,120]
[343103571,1732353105197,-151.0,0.00068493,120]
[343103572,1732353105207,-500.0,0.00068493,120]
[343103573,1732353105216,-1157.76,0.00068493,120]
[343103574,1732353105226,-151.0,0.00068493,120]
[343103575,1732353105237,-500.0,0.00068493,120]
[343103576,1732353105247,-1157.76,0.00068493,120]
[343103577,1732353105256,-500.0,0.00068493,120]
[343103578,1732353105265,-1157.76,0.00068493,120]
[343103579,1732353105275,-500.0,0.00068493,120]
[343103580,1732353105283,-1157.76,0.00068493,120]
[343103581,1732353105292,-500.0,0.00068493,120]
[343103582,1732353105302,-508.58436952,0.00068493,120]
[343103583,1732353105312,-454.65504732,0.00068493,120]
[343103584,1732353105322,-508.37842452,0.00068493,120]
[343103585,1732353105332,-247.38763,0.00068493,120]
[343103586,1732353105341,-2566.78449602,0.000689,30]
[343103587,1732353105350,-151.0,0.00069,120]
[343103588,1732353105360,-151.0,0.00069,120]
[343103589,1732353105370,-151.0,0.0007088,120]
[343103590,1732353105379,-5000.0,0.00074,120]
[343103591,1732353105389,-151.0,0.00075,120]
[343103592,1732353105399,-51045.33848458,0.00077885,120]
[343103593,1732353105458,-500.0,0.0006227,120]
[343103594,1732353105467,-2476.70383693,0.00077885,120]
[343103595,1732353105488,-4329.35777081,0.00077885,120]
[343103596,1732353105499,-3536.19277629,0.00077885,120]
[343103597,1732353105511,-8474.44421468,0.00077885,120]
[343103598,1732353105523,-1742.77358,0.00077885,120]
[343103599,1732353105632,-500.0,0.0006227,120]
[343103600,1732353105641,-147.75582328,0.0006227,120]
[343103601,1732353105654,-352.24417672,0.0006227,120]
[343103602,1732353105664,-500.0,0.0006227,120]
[343103603,1732353105674,-500.0,0.0006227,120]
[343103604,1732353105684,-500.0,0.0006227,120]
[343103605,1732353105694,-2566.78449601,0.000734,30]
[343103606,1732353105704,-5650.69119773,0.00077885,120]
[343103607,1732353105715,-364.24288644,0.00077885,120]
[343103608,1732353105731,-500.0,0.0006227,120]
[343103609,1732353105747,-785.05571944,0.00077885,120]
[343103610,1732353105759,-2356.35546403,0.00077885,120]
[343103611,1732353105819,-13451.62600391,0.00077885,120]
[343103612,1732353105832,-2189.69258679,0.00077885,120]
[343103613,1732353105843,-1176.41614437,0.00077885,120]
[343103614,1732353105859,-556.620198,0.00077885,120]
[343103615,1732353106126,-500.0,0.0006227,120]
[343103616,1732353106136,-500.0,0.0006227,120]
[343103617,1732353106145,-397.62379186,0.0006227,120]
[343103618,1732353106157,-102.37620814,0.0006227,120]
[343103619,1732353106167,-321.32379176,0.0006227,120]
[343103620,1732353106178,-178.67620824,0.0006227,120]
[343103621,1732353106188,-500.0,0.0006227,120]
[343103622,1732353106198,-500.0,0.0006227,120]
[343103623,1732353106208,-500.0,0.0006227,120]
[343103624,1732353106217,-500.0,0.0006227,120]
[343103625,1732353106227,-1094.0,0.00063836,120]
[343103626,1732353106239,-1094.0,0.00066836,120]
[343103627,1732353106249,-14759.12985894,0.00068268,2]
[343103628,1732353106259,-152.0,0.00068493,25]
[343103629,1732353106268,-500.0,0.00068493,120]
[343103630,1732353106278,-500.0,0.00068493,120]
[343103631,1732353106288,-224.80999567,0.00068493,120]
[343103632,1732353106451,-500.0,0.00068493,120]
[343103633,1732353106460,-500.0,0.00068493,120]
[343103634,1732353106470,-433.75,0.000685,60]
[343103635,1732353106479,-370.76,0.000685,60]
[343103636,1732353106491,-1094.0,0.00069836,120]
[343103637,1732353106501,-1094.0,0.00072836,120]
[343103638,1732353106510,-1094.0,0.00075836,120]
[343103639,1732353106521,-11911.76957508,0.00077885,120]
[343103640,1732353106533,-296.18044634,0.00077885,120]
[343103641,1732353106544,-2095.35429097,0.00077885,120]
[343103642,1732353106567,-362.86,0.000685,60]
[343103643,1732353106576,-300.0,0.000685,60]
[343103644,1732353106585,-300.0,0.000685,60]
[343103645,1732353106595,-1564.08424042,0.00077885,120]
[343103646,1732353106607,-756.75063557,0.00077885,120]
[343103647,1732353106618,-713.73759842,0.00077885,120]
[343103648,1732353106641,-440.29073718,0.0006227,120]
[343103649,1732353106652,-59.70926282,0.0006227,120]
[343103650,1732353106661,-500.0,0.00068493,120]
[343103651,1732353106671,-4057.09251089,0.00077885,120]
[343103652,1732353106682,-464.76347741,0.00077885,120]
[343103653,1732353106694,-866.1685384,0.00077885,120]
[343103654,1732353106705,-19118.3164598,0.00077885,120]
[343103655,1732353106716,-3615.88909292,0.00077885,120]
[343103656,1732353106728,-2976.95998953,0.00077885,120]
[343103657,1732353106742,-4881.82593817,0.00077885,120]
[343103658,1732353106827,-500.0,0.0006227,120]
[343103659,1732353106837,-256.39790606,0.0006227,120]
[343103660,1732353106847,-243.60209394,0.0006227,120]
[343103661,1732353106857,-9.91790606,0.0006227,120]
[343103662,1732353106871,-490.08209394,0.0006227,120]
[343103663,1732353106880,-500.0,0.00068493,120]
[343103664,1732353106890,-500.0,0.00068493,120]
[343103665,1732353106899,-500.0,0.00068493,120]
[343103666,1732353106908,-303.3388663,0.00068493,120]
[343103667,1732353106918,-433.75,0.000685,60]
[343103668,1732353106927,-362.86,0.000685,60]
[343103669,1732353106937,-187.66,0.000685,60]
[343103670,1732353106946,-433.75,0.000685,60]
[343103671,1732353106955,-362.86,0.000685,60]
[343103672,1732353106964,-433.75,0.000685,60]
[343103673,1732353106974,-5576.17723985,0.00077885,120]
[343103674,1732353106992,-547.84176427,0.00077885,120]
[343103675,1732353107003,-1171.666256,0.00077885,120]
[343103676,1732353107015,-856.2321508,0.00077885,120]
[343103677,1732353107026,-1972.83,0.00077885,120]
[343103678,1732353107037,-1471.75941935,0.00077885,120]
[343103679,1732353107048,-620.1702649,0.00077885,120]
[343103680,1732353107071,-500.0,0.0006227,120]
[343103681,1732353107080,-2777.85351006,0.00077885,120]
[343103682,1732353107091,-373.49586585,0.00077885,120]
[343103683,1732353107102,-2297.50306394,0.00077885,120]
[343103684,1732353107114,-1969.14069613,0.00077885,120]
[343103685,1732353107125,-777.05002,0.00077885,120]
[343103687,1732353445528,155.93,0.00041096,2]
[343103691,1732353908961,14821.08070217,0.00045,2]
[343103692,1732353909021,391017.98002746,0.0001,2]
[343103694,1732353912510,14371.70753127,0.00025,2]
[343103695,1732353918972,477.12749073,0.0004,30]
[343103696,1732353920424,3057.66519521,9e-05,2]
[343103697,1732353923466,470.88947472,0.000438,30]
[343103698,1732353926039,289.59786746,0.00045,120]
[343103699,1732353926518,673.62586591,0.00041,120]
[343103700,1732353926561,1020.92595619,0.00025,60]
[343103701,1732353928413,7488.99402102,0.000203,2]
[343103702,1732353932360,4507.90281096,1e-06,2]
[343103703,1732353933115,-352.76109213,0.00046,120]
[343103704,1732353935299,150.58052977,0.0001,2]
[343103705,1732353936726,500.0,0.00025,2]
[343103706,1732353937169,26000.0,8e-05,2]
[343103707,1732353947971,15313.79109083,0.000435,2]
[343103708,1732353955646,33388.09455318,6.94e-05,2]
[343103709,1732353960794,1170.01772046,0.0004,30]
[343103710,1732353966061,324.66553197,0.0004,30]
[343103711,1732353967232,150.0,0.0001,2]
[343103712,1732353967253,150.0,0.0001,2]
[343103713,1732353967273,150.0,0.0001,2]
[343103714,1732353967295,150.0,0.0001,2]
[343103715,1732353967316,99.99999901,0.0001,2]
[343103716,1732353969215,50.00000099,0.000199,3]
[343103717,1732353969236,150.0,0.000199,3]
[343103718,1732353969256,150.0,0.000199,3]
[343103719,1732353969277,150.0,0.000199,3]
[343103720,1732353969298,150.0,0.000199,3]
[343103721,1732353969319,150.0,0.000199,3]
[343103722,1732353969340,150.0,0.000199,3]
[343103723,1732353969361,150.0,0.000199,3]
[343103724,1732353969382,150.0,0.000199,3]
[343103725,1732353969402,150.0,0.000199,3]
[343103726,1732353969422,150.0,0.000199,3]
[343103727,1732353969442,113.88416649,0.000199,3]
[343103728,1732353978566,36.11583351,0.00025,2]
[343103729,1732353978588,150.0,0.00025,2]
[343103730,1732353978610,150.0,0.00025,2]
[343103731,1732353978630,150.0,0.00025,2]
[343103732,1732353978652,150.0,0.00025,2]
[343103733,1732353978679,951.95804807,0.00025,2]
[343103734,1732353980848,21199.98210865,0.000428,60]
[343103735,1732353980874,164681.41698416,0.000428,60]
[343103736,1732353984196,38848.47766852,0.00043,3]
[343103737,1732353985906,253.8426507,0.00025,2]
[343103738,1732353990628,1638.93411548,0.00015,2]
[343103739,1732353992388,450.96533521,0.00042,120]
[343103740,1732353999332,15468.6781382,0.00011888,2]
[343103741,1732354015255,7847.64265264,0.00016,2]
[343103742,1732354025197,312.70588604,0.00039,120]
[343103743,1732354027958,62317.28579603,0.00045,2]
[343103744,1732354027994,1517.64,0.000153,2]
[343103745,1732354029546,1631.51799648,0.00041642,2]
[343103746,1732354032059,704.95135114,0.000235,2]
[343103747,1732354032231,-17.06766616,0.00046,120]
[343103748,1732354032255,-2230.79775078,0.00047,120]
[343103749,1732354032279,-155.93,0.00047945,2]
[343103750,1732354032301,-1395.53149439,0.00049,2]
[343103751,1732354033103,-334.90995597,0.00049,2]
[343103752,1732354038104,205.0,9.8e-05,2]
[343103753,1732354041835,1512.13462442,0.0001305,2]
[343103754,1732354045102,-398.46821059,0.00049,2]
[343103755,1732354045122,-21.11384338,0.00049,2]
[343103756,1732354046815,150.0,0.00045,120]
[343103757,1732354046843,85.93173071,0.00045,120]
[343103758,1732354051087,-2731.94738885,0.00049,2]
[343103759,1732354051114,150.0,0.00025,2]
[343103760,1732354051144,4569.36408064,0.00025,2]
[343103761,1732354054230,535.79001879,0.00039,2]
[343103764,1732354059955,250.0,0.00027,2]
[343103765,1732354060919,319.6335037,0.00035,30]
[343103766,1732354061674,2774.02472424,9e-05,2]
[343103767,1732354062408,1155.42449368,0.000335,2]
[343103768,1732354067019,471.29325037,0.000314,30]
[343103769,1732354068130,300.0,0.00045,30]
[343103770,1732354075767,1199.46728912,0.00035,90]
[343103771,1732354075977,524.84385738,0.00013,2]
[343103772,1732354077253,34859.13325036,0.00043,2]
[343103773,1732354079893,11006.59401493,0.0001,2]
[343103774,1732354080974,144557.30658706,0.000145,3]
[343103775,1732354080996,54000.0,0.000145,3]
[343103776,1732354081024,141249.22369743,0.000145,3]
[343103777,1732354081107,1689.23346439,0.000181,2]
[343103778,1732354083089,357061.54283818,0.00013,2]
[343103779,1732354083119,500000.0,0.00013,2]
[343103780,1732354083148,500000.0,0.00013,2]
[343103781,1732354083178,18799.2,0.00013,2]
[343103782,1732354083457,19028.6504,0.00013,2]
[343103783,1732354083487,3519236.56127639,0.00013,2]
[343103784,1732354083780,337.76878653,0.0002442,2]
[343103785,1732354085277,150.0,0.00027,2]
[343103786,1732354085300,27987.34283306,0.00027,2]
[343103787,1732354089993,307.27938899,0.000282,2]
[343103788,1732354090039,67971.86618777,0.00023922,2]
[343103789,1732354090839,15398.48694549,0.0003,2]
[343103790,1732354092239,191.96103195,0.00033,120]
[343103791,1732354092341,24194.25488158,0.0002,2]
[343103792,1732354092430,54449.60002536,0.00027,2]
[343103793,1732354095698,13437.86012241,0.000275,2]
[343103794,1732354095727,16791.66231639,0.0002445,2]
[343103795,1732354096388,402.13598744,0.0002421,2]
[343103796,1732354097030,191.8002503,0.0004,30]
[343103797,1732354097171,24841.10265717,0.00033,2]
[343103798,1732354097847,1232.69416001,0.0002,2]
[343103799,1732354099234,200.0,0.0001634,2]
[343103800,1732354100811,1000.0,0.000135,2]
[343103801,1732354100900,292.77251897,0.000125,2]
[343103802,1732354108128,380.50511319,0.00027,2]
[343103803,1732354109831,1219.92043578,0.00015235,2]
[343103804,1732354111921,16167.22770215,0.000129,2]
[343103805,1732354112713,159.1514592,0.00012973,2]
[343103806,1732354112911,374.60745665,0.0004,2]
[343103807,1732354113257,244.55505079,0.00022,2]
[343103808,1732354114820,1129.30575245,0.00018,2]
[343103809,1732354115405,474.19021177,0.0004,120]
[343103810,1732354116521,479.80406477,0.00040998,120]
[343103811,1732354117369,16668.27077627,0.00022,2]
[343103812,1732354117529,213.10557981,0.0001,2]
[343103813,1732354118554,2091.93493776,0.00027,2]
[343103814,1732354120183,182.61410426,0.00039,120]
[343103815,1732354120628,5019.01603371,0.000232,2]
[343103816,1732354120659,172.14040453,0.00036,2]
[343103817,1732354120921,1732.4370571,0.0003,2]
[343103818,1732354121113,2602.83280294,0.0001,2]
[343103819,1732354121144,266.78290436,0.0002301,2]
[343103820,1732354121302,439.69664482,0.0002421,2]
[343103821,1732354121568,566.38642024,0.0002322,2]
[343103822,1732354121598,519.02146471,0.0002604,2]
[343103823,1732354121630,447.0309313,0.0003,2]
[343103824,1732354121798,5389.0,0.00015,2]
[343103825,1732354121850,226.5315227,0.0002999,2]
[343103826,1732354122602,157.16048912,0.00012973,2]
[343103827,1732354122796,496.36199515,0.00015,2]
[343103828,1732354123715,986.9993034,0.00027,2]
[343103829,1732354123790,1016.60669081,0.0003,2]
[343103830,1732354123949,1028.04678995,0.00018,2]
[343103831,1732354124001,814.28767408,0.00013,2]
[343103833,1732354124555,295.78160459,0.000151,2]
[343103834,1732354124936,1185.80930621,0.0003,2]
[343103835,1732354125130,482.78512288,0.000154,2]
[343103836,1732354125265,1138.76099089,0.00021,2]
[343103837,1732354125383,2046.2602069,0.0002,2]
[343103838,1732354125665,187.90207842,0.00021,2]
[343103841,1732354127258,300.0,0.0001,3]
[343103842,1732354133146,159.1466688,0.00012973,2]
[343103843,1732354133616,159.42138754,0.00012973,2]
[343103844,1732354148100,-158.3,0.00041096,2]
[343103845,1732354148121,-294.46572284,0.00044,31]
[343103846,1732354148144,-271.28355391,0.00045,30]
[343103847,1732354148167,-285.05228935,0.000451,2]
[343103855,1732354152946,159.1514592,0.00012973,2]
[343103856,1732354162705,159.1514592,0.00012973,2]
[343103857,1732354166118,-158.3,0.00048472,2]
[343103858,1732354166139,-18882.4189762,0.00049,2]
[343103859,1732354166159,-360.09791856,0.00049,60]
[343103860,1732354166179,-18620.0058359,0.000498,30]
[343103861,1732354173107,-6926.48189123,0.000498,30]
[343103892,1732354232593,-3338.28235706,0.000498,30]
[343103893,1732354232602,-428.69,0.0004999,30]
[343103894,1732354232622,-428.69,0.0004999,30]
[343103895,1732354232633,-428.69,0.0004999,30]
[343103896,1732354232643,-428.69,0.0004999,30]
[343103897,1732354232653,-428.69,0.0004999,30]
[343103898,1732354232666,-428.69,0.0004999,30]
[343103899,1732354232676,-428.69,0.0004999,30]
[343103900,1732354232686,-428.69,0.0004999,30]
[343103901,1732354232695,-428.69,0.0004999,30]
[343103902,1732354232706,-428.69,0.0004999,30]
[343103903,1732354232716,-428.69,0.0004999,30]
[343103904,1732354232727,-428.69,0.0004999,30]
[343103905,1732354232740,-500.0,0.0005,30]
[343103906,1732354232750,-42047.16481695,0.0005,120]
[343103907,1732354232764,-3296.42994531,0.0005,120]
[343103947,1732354233232,-3154.11128996,0.0005,120]
[343104066,1732354238389,-7173.52823412,0.0005,120]
[343104067,1732354238470,-3539.87344381,0.0005,120]
[343104068,1732354238481,-4004.12979335,0.0005,120]
[343104069,1732354238496,-529.76522685,0.0005,120]
[343104070,1732354238758,-2944.994112,0.0005,120]
[343104071,1732354238770,-11185.0,0.0005,120]
[343104072,1732354238935,-461.545,0.0005,120]
[343104077,1732354240431,-285.3355608,0.0005,120]
[343104078,1732354240442,-514.50000006,0.0005,120]
[343104079,1732354240546,-543.09390782,0.0005,120]
[343104080,1732354240564,-1119.2,0.0005,120]
[343104081,1732354240576,-422.84571065,0.0005,120]
[343104094,1732354243522,-43602.99229281,0.0005,120]
[343104095,1732354243533,-1129.90580331,0.0005,2]
[343104096,1732354243543,-3952.03594234,0.0005,2]
[343104097,1732354243553,-3147.56926153,0.0005,2]
[343104098,1732354243563,-281.54365302,0.0005,3]
[343104099,1732354243573,-369.29324392,0.000509,120]
[343104100,1732354243583,-191.59691422,0.0005199,10]
[343104101,1732354243595,-56.46308578,0.0005199,10]
[343104102,1732354243605,-428.69,0.0005199,30]
[343104103,1732354243614,-428.69,0.0005199,30]
[343104104,1732354243624,-428.69,0.0005199,30]
[343104105,1732354243634,-428.69,0.0005199,30]
[343104106,1732354243643,-428.69,0.0005199,30]
[343104107,1732354243653,-428.69,0.0005199,30]
[343104108,1732354243663,-237.0699584,0.0005199,30]
[343104109,1732354243673,-191.6200416,0.0005199,30]
[343104110,1732354243682,-330.927431,0.0005199,30]
[343104111,1732354243695,-97.762569,0.0005199,30]
[343104112,1732354243705,-12744.938431,0.00052,120]
[343104133,1732354246572,-62557.41766076,0.00052,120]
[343104134,1732354246583,-169.091639,0.0005232,2]
[343104135,1732354246593,-159.145072,0.0005232,2]
[343104136,1732354246602,-159.1466688,0.0005232,2]
[343104137,1732354246611,-159.145072,0.0005232,2]
[343104138,1732354246621,-157.65907495,0.0005232,2]